lending/lending_fUSD_20250218
["ID","MTS","AMOUNT","RATE_DAILY","PERIOD"]
[353534308,1739901042881,-324.13728495,0.00019786,2]
[353534309,1739901042890,-2324.0,0.00019789,13]
[353534310,1739901042900,-500.0,0.00019839,2]
[353534311,1739901042909,-500.0,0.0001984,2]
[353534312,1739901042918,-500.0,0.0001984,2]
[353534313,1739901042927,-500.0,0.0001984,2]
[353534314,1739901042936,-181.7277125,0.000199,2]
[353534315,1739901042945,-324.13728495,0.000199,2]
[353534316,1739901042956,-397.30789586,0.000199,2]
[353534317,1739901042965,-175.24938405,0.000199,2]
[353534319,1739901042974,-150.0,0.00019945,2]
[353534321,1739901042983,-150.0,0.00019953,2]
[353534322,1739901042994,-159.7499705,0.00019973,2]
[353534323,1739901043003,-151.76247197,0.00019973,2]
[353534324,1739901043013,-159.7499705,0.00019973,2]
[353534325,1739901043023,-500.0,0.00019973,2]
[353534326,1739901043032,-517.91931072,0.00019973,2]
[353534327,1739901043042,-150.0,0.00019979,2]
[353534330,1739901043050,-250.63590388,0.00019988,3]
[353534332,1739901043061,-501.29989767,0.00019988,3]
[353534333,1739901043070,-500.0,0.00019988,3]
[353534334,1739901043079,-211.61066321,0.00019989,2]
[353534335,1739901043089,-500.0,0.00019989,3]
[353534337,1739901043099,-216.97517832,0.00019989,3]
[353534340,1739901043108,-373.0153611,0.00019989,3]
[353534343,1739901043119,-500.0,0.00019989,3]
[353534345,1739901043128,-500.0,0.00019989,3]
[353534347,1739901043137,-500.0,0.00019989,3]
[353534349,1739901043147,-672.3,0.00019989,3]
[353534350,1739901043157,-482.17,0.00019997,2]
[353534352,1739901043166,-589.21,0.00019998,3]
[353534354,1739901043176,-500.0,0.00019998,3]
[353534356,1739901043186,-500.0,0.00019998,2]
[353534359,1739901043195,-300.0,0.00019999,2]
[353534362,1739901043205,-1105.6127077,0.00019999,5]
[353534364,1739901043221,-1105.6127077,0.00019999,5]
[353534367,1739901043231,-1105.6127077,0.00019999,5]
[353534370,1739901043240,-500.0,0.00019999,2]
[353534373,1739901043250,-500.0,0.00019999,3]
[353534376,1739901043260,-500.0,0.00019999,3]
[353534378,1739901043274,-500.0,0.00019999,3]
[353534380,1739901043284,-500.0,0.00019999,3]
[353534382,1739901043293,-536.65547173,0.00019999,3]
[353534383,1739901043303,-500.0,0.00019999,3]
[353534385,1739901043314,-500.0,0.00019999,3]
[353534389,1739901043323,-500.0,0.00019999,3]
[353534392,1739901043332,-500.0,0.00019999,3]
[353534394,1739901043341,-500.0,0.00019999,3]
[353534397,1739901043350,-500.0,0.00019999,3]
[353534400,1739901043359,-500.0,0.00019999,3]
[353534403,1739901043369,-500.0,0.00019999,3]
[353534406,1739901043379,-500.0,0.00019999,3]
[353534409,1739901043388,-500.0,0.00019999,3]
[353534412,1739901043398,-233.30495349,0.00019999,3]
[353534415,1739901043408,-500.0,0.00019999,3]
[353534418,1739901043417,-500.0,0.00019999,3]
[353534420,1739901043426,-265.39111994,0.00019999,3]
[353534421,1739901043435,-589.21,0.00019999,3]
[353534422,1739901043444,-589.21,0.00019999,3]
[353534423,1739901043454,-589.21,0.00019999,3]
[353534424,1739901043464,-589.21,0.00019999,3]
[353534425,1739901043475,-589.21,0.00019999,3]
[353534426,1739901043485,-589.21,0.00019999,3]
[353534427,1739901043494,-589.21,0.00019999,3]
[353534428,1739901043504,-589.21,0.00019999,3]
[353534429,1739901043515,-589.21,0.00019999,3]
[353534430,1739901043527,-589.21,0.00019999,3]
[353534431,1739901043537,-589.21,0.00019999,3]
[353534432,1739901043547,-589.21,0.00019999,3]
[353534433,1739901043558,-589.21,0.00019999,3]
[353534434,1739901043570,-589.21,0.00019999,3]
[353534435,1739901043580,-589.21,0.00019999,3]
[353534436,1739901043590,-589.21,0.00019999,3]
[353534437,1739901043599,-589.28635957,0.00019999,3]
[353534438,1739901043607,-500.0,0.00019999,3]
[353534439,1739901043617,-500.0,0.00019999,3]
[353534440,1739901043627,-500.0,0.00019999,3]
[353534441,1739901043636,-500.0,0.00019999,3]
[353534442,1739901043645,-500.0,0.00019999,3]
[353534443,1739901043656,-500.0,0.00019999,3]
[353534444,1739901043665,-500.0,0.00019999,3]
[353534445,1739901043675,-500.0,0.00019999,3]
[353534448,1739901043833,-500.0,0.00019999,3]
[353534449,1739901043847,-500.0,0.00019999,3]
[353534450,1739901043857,-500.0,0.00019999,3]
[353534451,1739901043867,-500.0,0.00019999,3]
[353534453,1739901043876,-500.0,0.00019999,3]
[353534455,1739901043886,-500.0,0.00019999,3]
[353534457,1739901043896,-500.0,0.00019999,3]
[353534458,1739901043907,-394.86171299,0.00019999,3]
[353534459,1739901043917,-500.0,0.00019999,3]
[353534460,1739901043927,-500.0,0.00019999,3]
[353534462,1739901043937,-500.0,0.00019999,3]
[353534464,1739901043946,-500.0,0.00019999,3]
[353534465,1739901043956,-500.0,0.00019999,3]
[353534466,1739901043966,-500.0,0.00019999,3]
[353534467,1739901043975,-500.0,0.00019999,3]
[353534468,1739901043985,-500.0,0.00019999,3]
[353534469,1739901043995,-500.0,0.00019999,3]
[353534470,1739901044005,-500.0,0.00019999,3]
[353534471,1739901044015,-500.0,0.00019999,3]
[353534472,1739901044024,-475.98639913,0.00019999,3]
[353534473,1739901044035,-203.76475593,0.00019999,3]
[353534474,1739901044044,-500.0,0.00019999,3]
[353534475,1739901044057,-500.0,0.00019999,3]
[353534476,1739901044066,-500.0,0.00019999,3]
[353534477,1739901044076,-500.0,0.00019999,3]
[353534478,1739901044087,-500.0,0.00019999,3]
[353534479,1739901044097,-500.0,0.00019999,3]
[353534480,1739901044111,-500.0,0.00019999,3]
[353534481,1739901044123,-500.0,0.00019999,3]
[353534482,1739901044133,-500.0,0.00019999,3]
[353534483,1739901044143,-260.48083539,0.00019999,3]
[353534484,1739901044153,-672.3,0.00019999,3]
[353534485,1739901044162,-672.3,0.00019999,3]
[353534486,1739901044172,-672.3,0.00019999,3]
[353534487,1739901044181,-672.3,0.00019999,3]
[353534488,1739901044191,-672.3,0.00019999,3]
[353534489,1739901044201,-672.3,0.00019999,3]
[353534490,1739901044210,-672.3,0.00019999,3]
[353534491,1739901044219,-672.3,0.00019999,3]
[353534492,1739901044229,-672.3,0.00019999,3]
[353534493,1739901044238,-672.3,0.00019999,3]
[353534494,1739901044248,-672.3,0.00019999,3]
[353534495,1739901044258,-672.3,0.00019999,3]
[353534496,1739901044268,-672.3,0.00019999,3]
[353534497,1739901044278,-672.3,0.00019999,3]
[353534498,1739901044287,-672.3,0.00019999,3]
[353534499,1739901044297,-672.37283964,0.00019999,3]
[353534500,1739901044307,-500.0,0.00019999,2]
[353534501,1739901044317,-500.0,0.00019999,2]
[353534502,1739901044327,-500.0,0.00019999,2]
[353534503,1739901044336,-500.0,0.00019999,2]
[353534504,1739901044346,-509.0,0.00019999,2]
[353534505,1739901044355,-1383.0,0.00019999,2]
[353534506,1739901044366,-278.61764886,0.0002,2]
[353534507,1739901044376,-969471.65655289,0.0002,3]
[353534508,1739901044386,-1178.1008366,0.0002,3]
[353534509,1739901044396,-3353515.51873355,0.0002,10]
[353534510,1739901044506,-643.2562136,0.0002,10]
[353534511,1739901044519,-283.365,0.0002,10]
[353534512,1739901044534,-24718.00078454,0.0002,10]
[353534513,1739901044545,-364.55005296,0.0002,10]
[353534514,1739901044558,-271.37002482,0.0002,10]
[353534515,1739901044605,-474.28167,0.00019726,3]
[353534516,1739901044617,-25.71833,0.00019726,3]
[353534517,1739901044626,-500.0,0.00019726,3]
[353534518,1739901044635,-416.53167,0.0002,10]
[353534519,1739901044646,-102770.3605781,0.0002,10]
[353534520,1739901044657,-564.44779208,0.0002,10]
[353534521,1739901044669,-260.72299452,0.0002,10]
[353534522,1739901044680,-952.35014631,0.0002,10]
[353534523,1739901044692,-55299.999999,0.0002,10]
[353534524,1739901044704,-4019.09127962,0.0002,10]
[353534525,1739901044815,-662.83217,0.00019441,2]
[353534526,1739901044826,-292.8706028,0.00019441,2]
[353534527,1739901044838,-369.12270208,0.00019441,2]
[353534528,1739901044849,-931.10673512,0.00019441,2]
[353534529,1739901044861,-502.81,0.00019441,2]
[353534530,1739901044871,-75.17348151,0.00019726,3]
[353534531,1739901044883,-424.82651849,0.00019726,3]
[353534532,1739901044893,-500.0,0.00019726,3]
[353534533,1739901044902,-27.37550045,0.00019726,3]
[353534534,1739901044914,-472.62449955,0.00019726,3]
[353534535,1739901044923,-173.51784087,0.00019726,3]
[353534536,1739901044935,-326.48215913,0.00019726,3]
[353534537,1739901044945,-500.0,0.00019726,3]
[353534538,1739901044954,-500.0,0.00019998,3]
[353534539,1739901044964,-500.0,0.00019998,3]
[353534540,1739901044973,-500.0,0.00019999,3]
[353534541,1739901044983,-500.0,0.00019999,3]
[353534542,1739901044992,-500.0,0.00019999,3]
[353534543,1739901045002,-385.10469407,0.00019999,3]
[353534544,1739901045012,-500.0,0.00019999,3]
[353534545,1739901045021,-500.0,0.00019999,3]
[353534546,1739901045031,-500.0,0.00019999,3]
[353534547,1739901045042,-985.74813428,0.0002,10]
[353534548,1739901045054,-500.0,0.0002,10]
[353534549,1739901045067,-3343.12,0.0002,10]
[353534550,1739901045078,-1139872.34703397,0.0002,10]
[353534551,1739901045097,-500.0,0.00019999,3]
[353534552,1739901045107,-1058.32946893,0.0002,10]
[353534553,1739901045118,-273.88727203,0.0002,10]
[353534554,1739901045131,-9716.88066135,0.0002,10]
[353534555,1739901045143,-38385.0,0.0002,10]
[353534556,1739901045155,-683.01037561,0.0002,10]
[353534557,1739901045167,-66531.487626,0.0002,10]
[353534558,1739901045185,-372933.07016824,0.0002,10]
[353534559,1739901045198,-436.50464415,0.0002,10]
[353534560,1739901045211,-2367.26859173,0.0002,10]
[353534561,1739901045228,-472.45547172,0.00019999,3]
[353534562,1739901045240,-89.14968647,0.00019999,3]
[353534563,1739901045250,-672.55611355,0.0002,10]
[353534564,1739901045262,-114327.18325801,0.0002,10]
[353534572,1739901046249,-9939.8,0.00018987,2]
[353534573,1739901046261,-1233.50666846,0.00018987,2]
[353534574,1739901046305,-9033.72221437,0.00018987,2]
[353534575,1739901046318,-3692.97111717,0.00018987,2]
[353534576,1739901046328,-652088.74258274,0.0002,10]
[353534577,1739901046414,-608.35712949,0.0002,10]
[353534578,1739901046426,-2118.3114102,0.0002,10]
[353534579,1739901046438,-140070.37129912,0.0002,10]
[353534580,1739901046471,-712.06383085,0.0002,10]
[353534581,1739901046483,-6038.59259297,0.0002,10]
[353534582,1739901046495,-564.2,0.0002,10]
[353534583,1739901046507,-265.89060494,0.0002,10]
[353534584,1739901046530,-285.74063755,0.0002,10]
[353534585,1739901046590,-16797.25415196,0.0002,10]
[353534587,1739901046602,-1554.61046167,0.0002,10]
[353534593,1739901056810,-1120374.99193762,0.0002,10]
[353534594,1739901172632,389.13729446,0.00020455,120]
[353534598,1739901796134,155.87,8.767e-05,2]
[353534654,1739902231450,-550.0,0.0001,2]
[353534655,1739902231460,-200.0,0.00011,2]
[353534656,1739902231470,-200.0,0.00011,2]
[353534657,1739902231480,-600.0,0.00012,2]
[353534658,1739902231490,-2393.47075493,0.00013146,2]
[353534659,1739902231500,-200.0,0.00013146,2]
[353534660,1739902231512,-178.73,0.00013699,2]
[353534661,1739902231522,-458.86,0.00015677,2]
[353534662,1739902231532,-503.28,0.00016228,2]
[353534663,1739902231542,-155.87,0.00016309,2]
[353534664,1739902231553,-500.84,0.0001713,2]
[353534665,1739902231562,-327.89,0.00017635,2]
[353534666,1739902231572,-14014.31788949,0.00017674,2]
[353534667,1739902231600,-468.53761822,0.00017674,2]
[353534668,1739902231613,-9417.14449229,0.00017674,2]
[353534669,1739902231623,-487.8,0.00017767,2]
[353534670,1739902231633,-163.56,0.00017767,2]
[353534671,1739902231643,-1000.0,0.00017778,2]
[353534672,1739902231653,-890.83,0.0001779,2]
[353534673,1739902231663,-150.4,0.00017802,2]
[353534674,1739902231673,-250.0,0.0001781,2]
[353534675,1739902231683,-161.92,0.00017868,2]
[353534676,1739902231692,-505.97,0.00017906,2]
[353534677,1739902231702,-221.81471769,0.00017941,2]
[353534678,1739902231714,-237.04528231,0.00017941,2]
[353534679,1739902231724,-503.06,0.0001795,2]
[353534680,1739902231734,-150.0,0.00018,2]
[353534681,1739902231744,-150.0,0.00018,2]
[353534682,1739902231754,-150.0,0.00018,2]
[353534683,1739902231766,-492.57,0.00018022,2]
[353534684,1739902231775,-509.6,0.00018136,2]
[353534685,1739902231785,-151.0,0.00018189,2]
[353534686,1739902231794,-255.0,0.00018199,2]
[353534687,1739902231804,-500.45,0.00018199,2]
[353534688,1739902231814,-476.41606739,0.00018199,2]
[353534689,1739902231824,-2150.09,0.00018199,2]
[353534690,1739902231833,-493.54,0.00018199,2]
[353534691,1739902231842,-507.17,0.00018199,2]
[353534692,1739902231852,-497.72,0.00018199,2]
[353534693,1739902231862,-497.25,0.00018199,2]
[353534694,1739902231871,-508.34,0.00018199,2]
[353534695,1739902231880,-508.51,0.00018199,2]
[353534696,1739902231890,-496.48,0.00018199,2]
[353534697,1739902231899,-492.68,0.00018199,2]
[353534698,1739902231908,-507.85,0.00018199,2]
[353534699,1739902231918,-508.9,0.00018199,2]
[353534700,1739902231927,-496.91,0.00018199,2]
[353534702,1739902231938,-507.18,0.00018199,2]
[353534704,1739902231952,-494.18,0.00018199,2]
[353534706,1739902231961,-494.88,0.00018199,2]
[353534707,1739902231971,-272.31048251,0.000182,2]
[353534708,1739902231981,-507.56,0.000182,2]
[353534710,1739902231991,-508.51,0.000182,2]
[353534712,1739902231999,-492.34,0.000182,2]
[353534714,1739902232011,-503.06,0.000182,2]
[353534716,1739902232022,-501.83,0.000182,2]
[353534718,1739902232031,-501.95,0.000182,2]
[353534720,1739902232041,-499.89,0.000182,2]
[353534722,1739902232050,-375.05,0.000182,2]
[353534724,1739902232059,-10132.0,0.000182,2]
[353534726,1739902232068,-494.82,0.000182,2]
[353534728,1739902232078,-323.44030722,0.000182,2]
[353534730,1739902232090,-171.37969278,0.000182,2]
[353534733,1739902232100,-502.01,0.00018201,2]
[353534734,1739902232111,-499.97,0.00018201,2]
[353534736,1739902232120,-296.33895677,0.00018202,2]
[353534739,1739902232131,-197.40104323,0.00018202,2]
[353534741,1739902232141,-502.49,0.00018204,2]
[353534743,1739902232150,-245.60105434,0.00018206,2]
[353534745,1739902232166,-261.71894566,0.00018206,2]
[353534747,1739902232175,-503.56,0.00018211,2]
[353534749,1739902232184,-501.02,0.0001822,2]
[353534751,1739902232194,-505.37,0.00018234,2]
[353534753,1739902232203,-1052.23105434,0.00018238,2]
[353534755,1739902232215,-495.49013947,0.00018238,2]
[353534756,1739902232226,-442.2695482,0.00018238,2]
[353534757,1739902232242,-10.00925799,0.00018238,2]
[353534758,1739902232251,-498.49,0.00018313,2]
[353534759,1739902232261,-497.14,0.00018398,2]
[353534760,1739902232271,-1827.735,0.000185,2]
[353534761,1739902232280,-176.26,0.000185,2]
[353534762,1739902232289,-296.29,0.000185,30]
[353534763,1739902232299,-490.39,0.0001855,2]
[353534764,1739902232308,-154.58,0.000186,2]
[353534765,1739902232317,-150.0,0.00018667,2]
[353534766,1739902232328,-1973.68,0.00018704,2]
[353534767,1739902232338,-986.84,0.00018704,2]
[353534768,1739902232347,-986.84,0.00018704,2]
[353534769,1739902232357,-986.84,0.00018704,2]
[353534770,1739902232367,-166.1,0.00018737,2]
[353534771,1739902232376,-502.97,0.00018811,2]
[353534772,1739902232385,-181.12,0.00018815,2]
[353534773,1739902232395,-300.0,0.000189,6]
[353534774,1739902232404,-150.0,0.00018956,2]
[353534775,1739902232413,-607.651,0.00018956,2]
[353534776,1739902232422,-700.0,0.00019,6]
[353534777,1739902232432,-1000.0,0.000191,6]
[353534778,1739902232442,-1000.0,0.00019178,7]
[353534779,1739902232451,-986.84,0.00019178,2]
[353534780,1739902232461,-200.0,0.000192,2]
[353534781,1739902232470,-1400.0,0.000192,7]
[353534782,1739902232479,-1000.0,0.0001926,2]
[353534783,1739902232489,-507.91,0.00019261,2]
[353534784,1739902232498,-182.71,0.00019285,2]
[353534785,1739902232509,-141.60460809,0.000193,7]
[353534786,1739902232521,-283.4687303,0.000193,7]
[353534787,1739902232533,-250.95747442,0.000193,7]
[353534796,1739902237422,-1023.96918719,0.000193,7]
[353534798,1739902237431,-150.0,0.00019333,4]
[353534800,1739902237440,-300.0,0.000194,7]
[353534802,1739902237450,-1000.0,0.00019452,7]
[353534803,1739902237459,-300.0,0.000195,7]
[353534804,1739902237468,-580.26,0.00019526,2]
[353534805,1739902237477,-159.63134515,0.00019527,2]
[353534806,1739902237487,-86.13946766,0.0001953,2]
[353534807,1739902237498,-1699.86053234,0.0001953,2]
[353534808,1739902237507,-1169.34,0.00019537,2]
[353534809,1739902237517,-510.0,0.00019537,2]
[353534810,1739902237527,-150.0,0.00019537,2]
[353534811,1739902237536,-150.0,0.00019537,2]
[353534812,1739902237545,-439.14,0.00019537,2]
[353534813,1739902237555,-439.14,0.00019537,2]
[353534814,1739902237564,-439.14,0.00019537,2]
[353534815,1739902237573,-155.4892187,0.00019599,2]
[353534816,1739902237582,-1049.92608347,0.000196,2]
[353534817,1739902237591,-135.02416549,0.000196,2]
[353534818,1739902237606,-961.50338946,0.000196,2]
[353534819,1739902237615,-300.0,0.000196,7]
[353534820,1739902237624,-159.6313451,0.00019602,2]
[353534821,1739902237634,-146.32191263,0.00019626,2]
[353534822,1739902237657,-371.63869951,0.00019626,2]
[353534823,1739902237668,-4482.03938786,0.00019626,2]
[353534824,1739902237678,-2500.0,0.00019626,2]
[353534825,1739902237687,-11887.76061214,0.00019626,2]
[353534826,1739902237703,-2079.99815945,0.00019626,2]
[353534828,1739902238061,-41587.24122841,0.00019626,2]
[353534830,1739902238071,-318.51152,0.00019627,7]
[353534831,1739902238080,-159.6313451,0.00019676,2]
[353534833,1739902238089,-1500.0,0.000197,2]
[353534835,1739902238099,-300.0,0.000197,7]
[353534837,1739902238108,-501.69969417,0.00019726,3]
[353534839,1739902238118,-500.0,0.00019726,3]
[353534841,1739902238127,-500.0,0.00019726,3]
[353534843,1739902238137,-500.0,0.00019726,3]
[353534845,1739902238147,-500.0,0.00019726,3]
[353534846,1739902238156,-500.0,0.00019726,3]
[353534847,1739902238166,-500.0,0.00019726,3]
[353534848,1739902238175,-500.0,0.00019726,3]
[353534849,1739902238184,-500.0,0.00019726,3]
[353534850,1739902238193,-500.0,0.00019726,3]
[353534851,1739902238202,-500.0,0.00019726,3]
[353534852,1739902238211,-510.09708833,0.00019726,3]
[353534853,1739902238220,-500.0,0.00019726,3]
[353534854,1739902238230,-500.0,0.00019726,3]
[353534855,1739902238239,-500.0,0.00019726,3]
[353534857,1739902238248,-500.0,0.00019726,3]
[353534858,1739902238258,-500.0,0.00019726,3]
[353534859,1739902238423,-500.0,0.00019726,3]
[353534860,1739902238433,-500.0,0.00019726,3]
[353534861,1739902238443,-500.0,0.00019726,3]
[353534862,1739902238452,-502.9536245,0.00019726,3]
[353534863,1739902238461,-500.0,0.00019726,3]
[353534864,1739902238471,-500.0,0.00019726,3]
[353534865,1739902238480,-500.0,0.00019726,3]
[353534866,1739902238490,-500.0,0.00019726,3]
[353534868,1739902238500,-500.0,0.00019726,3]
[353534869,1739902238509,-500.0,0.00019726,3]
[353534870,1739902238521,-500.0,0.00019726,3]
[353534871,1739902238530,-500.0,0.00019726,3]
[353534872,1739902238539,-500.0,0.00019726,3]
[353534873,1739902238549,-500.0,0.00019726,3]
[353534874,1739902238558,-500.0,0.00019726,3]
[353534875,1739902238568,-625.16328293,0.00019726,3]
[353534876,1739902238578,-500.0,0.00019726,3]
[353534877,1739902238587,-504.14621508,0.00019726,3]
[353534878,1739902238598,-500.0,0.00019726,3]
[353534879,1739902238607,-500.0,0.00019726,3]
[353534880,1739902238617,-500.0,0.00019726,3]
[353534881,1739902238627,-500.0,0.00019726,3]
[353534882,1739902238636,-500.0,0.00019726,3]
[353534883,1739902238646,-500.0,0.00019726,3]
[353534884,1739902238655,-500.0,0.00019726,3]
[353534885,1739902238665,-500.0,0.00019726,3]
[353534886,1739902238675,-500.0,0.00019726,3]
[353534887,1739902238684,-500.0,0.00019726,3]
[353534888,1739902238694,-500.0,0.00019726,3]
[353534889,1739902238705,-551.12,0.00019726,3]
[353534890,1739902238715,-500.0,0.00019726,3]
[353534891,1739902238724,-500.0,0.00019726,3]
[353534892,1739902238735,-500.0,0.00019726,3]
[353534893,1739902238744,-500.0,0.00019726,3]
[353534894,1739902238755,-500.0,0.00019726,3]
[353534895,1739902238764,-500.0,0.00019726,3]
[353534896,1739902238773,-500.0,0.00019726,3]
[353534897,1739902238783,-500.0,0.00019726,3]
[353534898,1739902238792,-500.0,0.00019726,3]
[353534899,1739902238802,-500.0,0.00019726,3]
[353534900,1739902238811,-500.0,0.00019726,3]
[353534901,1739902238820,-500.0,0.00019726,3]
[353534902,1739902238830,-500.0,0.00019726,3]
[353534903,1739902238839,-500.0,0.00019726,3]
[353534904,1739902238849,-501.97277361,0.00019726,3]
[353534905,1739902238859,-503.05098858,0.00019726,3]
[353534906,1739902238869,-500.0,0.00019726,3]
[353534907,1739902238878,-500.0,0.00019726,3]
[353534908,1739902238887,-500.0,0.00019726,3]
[353534909,1739902238896,-502.2805188,0.00019726,3]
[353534910,1739902238906,-500.0,0.00019726,3]
[353534911,1739902238915,-507.40455917,0.00019726,3]
[353534912,1739902238924,-500.0,0.00019726,3]
[353534913,1739902238933,-500.0,0.00019726,3]
[353534914,1739902238945,-500.0,0.00019726,3]
[353534915,1739902238955,-500.0,0.00019726,3]
[353534916,1739902238964,-500.0,0.00019726,3]
[353534917,1739902238973,-500.0,0.00019726,3]
[353534918,1739902238984,-331.73193211,0.00019726,3]
[353534919,1739902238993,-500.0,0.00019726,3]
[353534920,1739902239002,-500.0,0.00019726,3]
[353534921,1739902239011,-500.0,0.00019726,3]
[353534922,1739902239029,-500.0,0.00019726,3]
[353534923,1739902239043,-500.0,0.00019726,3]
[353534924,1739902239054,-500.0,0.00019726,3]
[353534925,1739902239065,-500.0,0.00019726,3]
[353534926,1739902239075,-500.0,0.00019726,3]
[353534927,1739902239085,-500.0,0.00019726,3]
[353534928,1739902239095,-500.0,0.00019726,3]
[353534929,1739902239105,-500.0,0.00019726,3]
[353534930,1739902239117,-505.00165365,0.00019726,3]
[353534931,1739902239128,-500.0,0.00019726,3]
[353534932,1739902239138,-500.0,0.00019726,3]
[353534933,1739902239147,-500.0,0.00019726,3]
[353534934,1739902239157,-500.0,0.00019726,3]
[353534935,1739902239167,-500.0,0.00019726,3]
[353534936,1739902239177,-396.66099073,0.00019726,3]
[353534937,1739902239187,-500.0,0.00019726,3]
[353534938,1739902239197,-503.60852105,0.00019726,3]
[353534939,1739902239206,-500.0,0.00019726,3]
[353534940,1739902239216,-500.0,0.00019726,3]
[353534941,1739902239225,-504.26,0.00019726,3]
[353534942,1739902239235,-520.23857426,0.00019726,3]
[353534943,1739902239245,-500.0,0.00019726,3]
[353534944,1739902239255,-500.0,0.00019726,3]
[353534945,1739902239266,-500.0,0.00019726,3]
[353534946,1739902239275,-500.0,0.00019726,3]
[353534947,1739902239285,-500.0,0.00019726,3]
[353534948,1739902239294,-500.0,0.00019726,3]
[353534949,1739902239303,-500.0,0.00019726,3]
[353534950,1739902239313,-500.0,0.00019726,3]
[353534951,1739902239322,-500.0,0.00019726,3]
[353534952,1739902239332,-500.0,0.00019726,3]
[353534953,1739902239341,-500.0,0.00019726,3]
[353534954,1739902239351,-500.0,0.00019726,3]
[353534955,1739902239360,-500.0,0.00019726,3]
[353534956,1739902239370,-500.0,0.00019726,3]
[353534957,1739902239379,-573.88,0.00019726,3]
[353534958,1739902239388,-500.0,0.00019726,3]
[353534959,1739902239398,-500.0,0.00019726,3]
[353534960,1739902239407,-500.0,0.00019726,3]
[353534961,1739902239417,-500.0,0.00019726,3]
[353534962,1739902239426,-500.0,0.00019726,3]
[353534963,1739902239436,-500.0,0.00019726,3]
[353534964,1739902239445,-500.0,0.00019726,3]
[353534965,1739902239455,-500.0,0.00019726,3]
[353534966,1739902239464,-500.0,0.00019726,3]
[353534967,1739902239474,-500.0,0.00019726,3]
[353534968,1739902239483,-500.0,0.00019726,3]
[353534969,1739902239492,-236.82067821,0.00019726,3]
[353534970,1739902239502,-500.0,0.00019726,3]
[353534972,1739902239511,-500.0,0.00019726,3]
[353534974,1739902239522,-500.0,0.00019726,3]
[353534975,1739902239531,-500.0,0.00019726,3]
[353534976,1739902239540,-331.8066911,0.00019726,3]
[353534977,1739902239550,-500.0,0.00019726,3]
[353534978,1739902239559,-500.0,0.00019726,3]
[353534979,1739902239569,-500.0,0.00019726,3]
[353534980,1739902239579,-500.0,0.00019726,3]
[353534981,1739902239588,-500.0,0.00019726,3]
[353534982,1739902239598,-500.0,0.00019726,3]
[353534983,1739902239607,-500.0,0.00019726,3]
[353534984,1739902239617,-501.59858499,0.00019726,3]
[353534985,1739902239626,-500.0,0.00019726,3]
[353534986,1739902239635,-500.0,0.00019726,3]
[353534987,1739902239645,-500.0,0.00019726,3]
[353534988,1739902239655,-500.0,0.00019726,3]
[353534989,1739902239664,-500.0,0.00019726,3]
[353534990,1739902239674,-500.0,0.00019726,3]
[353534991,1739902239684,-500.0,0.00019726,3]
[353534992,1739902239693,-414.93348119,0.00019726,3]